lending/lending_fUSD_20260328
["ID","MTS","AMOUNT","RATE_DAILY","PERIOD"]
[418963551,1774672237787,-558.39,0.00013493,2]
[418963552,1774672237798,-195.78200294,0.00013563,2]
[418963553,1774672237810,-1001.76089238,0.00013572,2]
[418963554,1774672237819,-500.0,0.00013572,2]
[418963555,1774672237828,-182.36671477,0.00013572,2]
[418963556,1774672237838,-500.0,0.00013572,2]
[418963557,1774672237850,-500.0,0.00013572,2]
[418963558,1774672237859,-555.05021518,0.00013572,2]
[418963559,1774672237868,-500.62309988,0.00013572,2]
[418963560,1774672237877,-1801896.48741272,0.00013573,2]
[418963562,1774672239836,-872.14,0.00013573,2]
[418963563,1774672240408,-40000.108401,0.00013573,2]
[418963564,1774672240428,-3298.00019348,0.00013573,2]
[418963565,1774672240440,-750.0,0.00013573,2]
[418963566,1774672240451,-257713.63039045,0.00013573,2]
[418963567,1774672240462,-1015.96867818,0.00013573,2]
[418963568,1774672240473,-1655.35490122,0.00013573,2]
[418963576,1774672240810,-1271.47289819,0.00013573,2]
[418963577,1774672240826,-391526.83712476,0.00013573,2]
[418963578,1774672240837,-47732.9853,0.00013573,2]
[418963579,1774672240848,-1625.21570476,0.00013573,2]
[418963580,1774672240859,-151.9327,0.000136,2]
[418963581,1774672240868,-2800.0,0.000136,4]
[418963582,1774672240877,-252.99,0.00013626,2]
[418963583,1774672240886,-200.0,0.00013673,2]
[418963584,1774672240895,-1366.06950521,0.00013673,2]
[418963585,1774672240904,-500.0,0.00013673,2]
[418963586,1774672240914,-1523.0,0.00013673,2]
[418963588,1774672240925,-444.21184452,0.00013673,2]
[418963589,1774672240934,-152.83869023,0.00013673,2]
[418963590,1774672240943,-257.7752004,0.00013697,2]
[418963591,1774672240952,-2150.3128646,0.00013697,2]
[418963592,1774672240962,-22132.1515054,0.00013697,2]
[418963593,1774672240973,-500.0,0.00013698,2]
[418963594,1774672240984,-500.0,0.00013698,2]
[418963595,1774672241010,-500.0,0.00013698,2]
[418963596,1774672241021,-500.0,0.00013698,2]
[418963597,1774672241031,-500.0,0.00013698,2]
[418963598,1774672241042,-500.0,0.00013698,2]
[418963599,1774672241053,-500.0,0.00013698,2]
[418963601,1774672241063,-500.0,0.00013698,2]
[418963603,1774672241073,-500.0,0.00013698,2]
[418963605,1774672241083,-215.29709498,0.00013698,2]
[418963607,1774672241092,-150.0,0.00013699,2]
[418963609,1774672241102,-150.0,0.00013699,2]
[418963611,1774672241112,-150.0,0.00013699,2]
[418963613,1774672241121,-150.0,0.00013699,2]
[418963615,1774672241131,-150.0,0.00013699,2]
[418963617,1774672241141,-150.0,0.00013699,2]
[418963619,1774672241151,-150.0,0.00013699,2]
[418963621,1774672241161,-1656.11,0.00013699,2]
[418963623,1774672241170,-166.75956817,0.00013699,2]
[418963625,1774672241180,-884.2,0.000137,2]
[418963627,1774672241189,-874.72,0.000137,2]
[418963628,1774672241198,-2572.22,0.000137,2]
[418963629,1774672241208,-5700.0,0.000137,5]
[418963630,1774672241217,-964.85,0.000137,2]
[418963631,1774672241227,-964.85,0.000137,2]
[418963632,1774672241236,-964.85,0.000137,2]
[418963633,1774672241246,-964.85,0.000137,2]
[418963634,1774672241255,-964.85,0.000137,2]
[418963635,1774672241265,-296.0,0.0001374,2]
[418963636,1774672241274,-10927.26231173,0.00013743,2]
[418963637,1774672241284,-151.0,0.0001377,2]
[418963638,1774672241294,-168.0,0.00013772,2]
[418963639,1774672241304,-8600.0,0.000138,5]
[418963640,1774672241313,-200.0,0.0001381,2]
[418963641,1774672241323,-166.66,0.0001382,2]
[418963642,1774672241333,-5000.0,0.00013832,2]
[418963643,1774672241343,-1326.17287744,0.00013872,5]
[418963644,1774672241352,-1326.17287744,0.00013872,5]
[418963645,1774672241362,-500.0,0.00013873,2]
[418963646,1774672241371,-500.0,0.0001389,2]
[418963647,1774672241381,-2518.68,0.000139,2]
[418963648,1774672241390,-11500.0,0.000139,5]
[418963649,1774672241399,-200.0,0.00013948,2]
[418963650,1774672241409,-150.0,0.00013973,2]
[418963651,1774672241418,-150.0,0.00013973,2]
[418963652,1774672241428,-150.0,0.00013973,2]
[418963653,1774672241438,-150.0,0.00013973,2]
[418963654,1774672241448,-150.0,0.00013973,2]
[418963655,1774672241457,-150.0,0.00013973,2]
[418963656,1774672241467,-150.0,0.00013973,2]
[418963657,1774672241476,-874.72,0.00013974,2]
[418963658,1774672241486,-10927.26231173,0.00014012,2]
[418963659,1774672241495,-2185.21,0.00014033,2]
[418963660,1774672241505,-168.0,0.00014043,2]
[418963661,1774672241514,-1105.39,0.00014092,2]
[418963662,1774672241524,-168.0,0.00014162,2]
[418963663,1774672241534,-230.0,0.00014177,3]
[418963664,1774672241543,-153.0,0.00014177,3]
[418963665,1774672241553,-161.89,0.00014208,2]
[418963666,1774672241562,-150.0,0.00014247,2]
[418963667,1774672241573,-150.0,0.00014247,2]
[418963668,1774672241585,-150.0,0.00014247,2]
[418963669,1774672241596,-150.0,0.00014247,2]
[418963670,1774672241607,-150.0,0.00014247,2]
[418963671,1774672241617,-150.0,0.00014247,2]
[418963672,1774672241627,-874.72,0.00014248,2]
[418963673,1774672241638,-168.0,0.00014249,2]
[418963674,1774672241648,-1154.0,0.00014256,5]
[418963675,1774672241658,-880.56,0.00014271,2]
[418963676,1774672241669,-10927.26231173,0.00014282,2]
[418963677,1774672241680,-156.42,0.00014306,2]
[418963678,1774672241691,-168.0,0.00014345,2]
[418963679,1774672241700,-500.0,0.00014356,2]
[418963680,1774672241711,-800.0,0.00014356,2]
[418963681,1774672241722,-925.0,0.00014373,5]
[418963682,1774672241731,-1032.0,0.00014373,5]
[418963683,1774672241740,-1656.11,0.00014384,2]
[418963684,1774672241751,-1570.0,0.000144,2]
[418963685,1774672241762,-2807.0,0.000144,2]
[418963686,1774672241774,-2806.0,0.000144,2]
[418963687,1774672241783,-2807.0,0.0001441,2]
[418963688,1774672241793,-161.0,0.0001441,2]
[418963689,1774672241802,-500.0,0.00014421,2]
[418963690,1774672241811,-5888.0,0.00014439,2]
[418963691,1774672241821,-874.72,0.00014522,2]
[418963692,1774672241831,-880.56,0.00014545,2]
[418963693,1774672241842,-10927.26231173,0.00014552,2]
[418963694,1774672241852,-1239.0,0.000146,2]
[418963695,1774672241862,-436.71768435,0.00014628,2]
[418963696,1774672241872,-200.0,0.00014667,2]
[418963697,1774672241883,-200.0,0.00014667,2]
[418963698,1774672241895,-166.63719109,0.00014687,2]
[418963699,1774672241905,-2807.0,0.00014721,2]
[418963700,1774672241915,-531.0,0.00014729,2]
[418963701,1774672241925,-1625.21570476,0.00014737,2]
[418963702,1774672241937,-151.0,0.0001476,2]
[418963703,1774672241947,-3243.3608773,0.0001476,2]
[418963704,1774672241957,-455.62837,0.0001476,2]
[418963705,1774672241969,-455.62837,0.0001476,2]
[418963706,1774672241979,-455.62837,0.0001476,2]
[418963707,1774672241988,-455.62837,0.0001476,2]
[418963708,1774672241997,-455.62837,0.0001476,2]
[418963709,1774672242006,-455.62838,0.0001476,2]
[418963710,1774672242015,-250.0,0.00014767,3]
[418963711,1774672242026,-151.0,0.00014794,2]
[418963712,1774672242035,-874.72,0.00014796,2]
[418963713,1774672242044,-1000.0,0.000148,2]
[418963714,1774672242054,-312.0,0.000148,2]
[418963715,1774672242063,-209.0,0.000148,2]
[418963716,1774672242073,-306.0,0.000148,2]
[418963717,1774672242082,-153.0,0.00014804,2]
[418963718,1774672242091,-153.65399502,0.00014804,2]
[418963719,1774672242101,-200.0,0.00014814,2]
[418963720,1774672242110,-200.0,0.00014814,2]
[418963721,1774672242120,-880.56,0.00014819,2]
[418963722,1774672242129,-10927.26231173,0.00014821,2]
[418963723,1774672242139,-500.0,0.00014864,2]
[418963724,1774672242148,-500.0,0.00014865,2]
[418963725,1774672242159,-200.0,0.00014865,2]
[418963726,1774672242168,-151.0,0.00014866,2]
[418963727,1774672242178,-230.0,0.00014888,3]
[418963728,1774672242188,-153.0,0.00014888,3]
[418963729,1774672242197,-155.0,0.000149,2]
[418963730,1774672242207,-156.31,0.000149,2]
[418963731,1774672242216,-2000.0,0.00014942,2]
[418963732,1774672242226,-218.9943877,0.00014943,2]
[418963733,1774672242236,-500.0,0.00014943,2]
[418963734,1774672242245,-407.84488759,0.00014943,2]
[418963735,1774672242254,-151.0,0.00014952,2]
[418963736,1774672242264,-151.0,0.00014955,2]
[418963737,1774672242273,-200.0,0.00014962,2]
[418963738,1774672242282,-200.0,0.00014962,2]
[418963739,1774672242292,-78.31015731,0.00014985,2]
[418963740,1774672242301,-509.99225915,0.00014985,2]
[418963741,1774672242310,-500.0,0.00014985,2]
[418963742,1774672242319,-500.0,0.00014985,2]
[418963743,1774672242328,-784.69,0.00014985,2]
[418963744,1774672242339,-1011.0,0.00015,2]
[418963745,1774672242348,-761.0,0.00015,2]
[418963746,1774672242358,-500.73166115,0.00015,2]
[418963747,1774672242368,-503.17008825,0.00015009,2]
[418963748,1774672242377,-500.0,0.00015009,2]
[418963749,1774672242386,-151.0,0.00015012,2]
[418963750,1774672242395,-1266.596,0.00015012,2]
[418963751,1774672242405,-150.171,0.00015012,2]
[418963752,1774672242415,-924.0,0.00015012,2]
[418963753,1774672242425,-3532.056,0.00015012,2]
[418963754,1774672242434,-2468.0,0.00015012,2]
[418963755,1774672242444,-6012.0,0.00015012,2]
[418963756,1774672242455,-168.0,0.00015031,2]
[418963757,1774672242467,-2807.0,0.0001504,2]
[418963758,1774672242477,-2807.0,0.0001504,2]
[418963759,1774672242487,-161.0,0.0001504,2]
[418963760,1774672242496,-1570.0,0.0001504,2]
[418963761,1774672242505,-1656.11,0.00015068,2]
[418963762,1774672242514,-450.38,0.00015068,2]
[418963763,1774672242523,-874.72,0.0001507,2]
[418963764,1774672242534,-500.27831929,0.00015073,2]
[418963765,1774672242543,-240.93308902,0.00015073,2]
[418963766,1774672242555,-342.63485553,0.00015073,2]
[418963767,1774672242564,-500.0,0.00015073,2]
[418963768,1774672242574,-414.00821866,0.00015073,2]
[418963769,1774672242583,-500.0,0.00015073,2]
[418963770,1774672242593,-500.0,0.00015073,2]
[418963771,1774672242602,-500.0,0.00015073,2]
[418963772,1774672242611,-500.0,0.00015073,2]
[418963773,1774672242620,-500.0,0.00015073,2]
[418963774,1774672242629,-500.0,0.00015073,2]
[418963775,1774672242639,-152.0,0.00015084,3]
[418963776,1774672242648,-516.86959975,0.00015085,2]
[418963777,1774672242657,-470.0,0.00015085,2]
[418963778,1774672242667,-521.10158946,0.00015085,2]
[418963780,1774672242676,-521.48738685,0.00015085,2]
[418963782,1774672242686,-510.47890095,0.00015085,2]
[418963783,1774672242695,-649.2,0.00015085,2]
[418963784,1774672242704,-508.12593373,0.00015085,2]
[418963785,1774672242713,-10927.26231173,0.00015091,2]
[418963786,1774672242723,-151.0,0.00015091,2]
[418963787,1774672242742,-427.23,0.00015093,2]
[418963788,1774672242751,-200.0,0.00015111,2]
[418963789,1774672242760,-200.0,0.00015111,2]
[418963790,1774672242768,-161.89,0.00015155,2]
[418963792,1774672242778,-154.46961228,0.00015187,2]
[418963794,1774672242787,-2194.97,0.000152,2]
[418963795,1774672242796,-658.18,0.000152,2]
[418963796,1774672242805,-1371.15,0.000152,2]
[418963797,1774672242814,-151.0,0.000152,2]
[418963798,1774672242823,-1602.75898208,0.000152,2]
[418963799,1774672242838,-151.0,0.000152,2]
[418963800,1774672242848,-151.0,0.000152,2]
[418963801,1774672242857,-1473.25562366,0.000152,2]
[418963802,1774672242866,-951.5867005,0.000152,2]
[418963803,1774672242876,-150.0,0.00015245,2]
[418963804,1774672242886,-150.0,0.00015245,2]
[418963805,1774672242895,-150.096,0.00015245,2]
[418963807,1774672242905,-150.0,0.00015245,2]
[418963808,1774672242914,-150.113,0.00015245,2]
[418963809,1774672242925,-150.0,0.00015245,2]
[418963810,1774672242935,-150.0,0.00015245,2]
[418963811,1774672242946,-150.0,0.00015245,2]
[418963812,1774672242959,-150.091,0.00015245,2]
[418963813,1774672242968,-784.69,0.00015259,2]
[418963814,1774672242978,-200.0,0.00015263,2]
[418963815,1774672242988,-200.0,0.00015263,2]
[418963816,1774672242998,-874.72,0.00015344,2]
[418963817,1774672243007,-1570.0,0.0001536,2]
[418963818,1774672243017,-161.0,0.0001536,2]
[418963819,1774672243027,-10927.26231173,0.00015361,2]
[418963820,1774672243036,-161.0,0.00015361,2]
[418963821,1774672243046,-2807.0,0.00015369,2]
[418963822,1774672243056,-151.0,0.00015383,2]
[418963823,1774672243066,-151.0,0.00015383,2]
[418963824,1774672243076,-151.0,0.00015383,2]
[418963825,1774672243085,-151.0,0.00015383,2]
[418963826,1774672243095,-884.2,0.000154,2]
[418963827,1774672243105,-2572.22,0.000154,2]
[418963828,1774672243115,-4938.3505098,0.00015434,2]
[418963829,1774672243124,-500.0,0.00015479,2]
[418963830,1774672243134,-500.0,0.00015479,2]
[418963831,1774672243144,-500.0,0.00015479,2]
[418963832,1774672243154,-500.0,0.00015479,2]
[418963833,1774672243164,-500.0,0.00015479,2]
[418963834,1774672243308,-242.30856507,0.00015479,2]
[418963835,1774672243317,-612.96279452,0.00015491,2]
[418963836,1774672243327,-2950.12,0.00015507,2]
[418963837,1774672243336,-566.34,0.00015533,2]
[418963838,1774672243346,-173.72,0.00015534,2]
[418963839,1774672243356,-1000.0,0.00015557,2]
[418963840,1774672243366,-230.0,0.00015599,3]
[418963841,1774672243375,-153.0,0.00015599,3]
[418963842,1774672243385,-14400.0,0.000156,5]
[418963843,1774672243394,-168.0,0.00015602,2]
[418963844,1774672243404,-151.0,0.00015602,2]
[418963845,1774672243414,-151.0,0.00015602,2]
[418963846,1774672243423,-874.72,0.00015618,2]
[418963847,1774672243432,-1000.0,0.00015621,2]
[418963848,1774672243442,-1000.0,0.00015621,2]
[418963849,1774672243451,-1000.0,0.00015621,2]
[418963850,1774672243461,-1000.0,0.00015621,2]
[418963851,1774672243471,-357.94589215,0.00015621,2]
[418963852,1774672243481,-1006.56659925,0.00015621,2]
[418963853,1774672243490,-509.88873086,0.00015621,2]
[418963854,1774672243500,-10927.26231173,0.0001563,2]
[418963855,1774672243509,-151.0,0.00015643,2]
[418963856,1774672243518,-761.53848931,0.0001567,2]
[418963857,1774672243528,-1570.0,0.0001568,2]
[418963858,1774672243537,-2807.0,0.0001568,2]
[418963859,1774672243545,-161.0,0.00015681,2]
[418963860,1774672243554,-436.71768435,0.00015682,2]
[418963861,1774672243563,-2800.0,0.000157,5]
[418963862,1774672243572,-500.0,0.00015726,2]
[418963863,1774672243582,-800.0,0.00015726,2]
[418963864,1774672243592,-235.449118,0.00015753,2]
[418963865,1774672243601,-1656.11,0.00015753,2]
[418963866,1774672243611,-152.0,0.00015787,4]
[418963867,1774672243621,-2800.0,0.000158,5]
[418963868,1774672243631,-1101.8949401,0.00015821,2]
[418963869,1774672243641,-797.37,0.00015869,2]
[418963870,1774672243650,-2000.0,0.0001589,2]
[418963871,1774672243660,-874.72,0.00015892,2]
[418963872,1774672243670,-2950.12,0.00015895,2]
[418963873,1774672243679,-2518.68,0.000159,2]
[418963874,1774672243688,-851.4828,0.000159,2]
[418963875,1774672243698,-2477.60877987,0.000159,2]
[418963876,1774672243707,-2800.0,0.000159,5]
[418963877,1774672243717,-166.63719109,0.000159,2]
[418963878,1774672243727,-1625.21570476,0.000159,2]
[418963879,1774672243737,-10927.26231173,0.000159,2]
[418963880,1774672243747,-500.0,0.0001597,2]
[418963881,1774672243757,-500.0,0.0001597,2]
[418963882,1774672243766,-500.0,0.0001597,2]
[418963883,1774672243776,-884.5402102,0.0001597,2]
[418963884,1774672243786,-700.0,0.0001597,2]
[418963885,1774672243797,-700.0,0.0001597,2]
[418963886,1774672243806,-700.0,0.0001597,2]
[418963887,1774672243816,-357.94991842,0.00015973,2]
[418963888,1774672243825,-500.56638856,0.00015973,2]
[418963889,1774672243835,-500.79070752,0.00015973,2]
[418963890,1774672243844,-500.0,0.00015973,2]
[418963891,1774672243854,-500.0,0.00015973,2]
[418963892,1774672243863,-500.0,0.00015973,2]
[418963893,1774672243873,-258.70523364,0.00015997,2]
[418963894,1774672243883,-20969.26462776,0.00016,2]
[418963895,1774672243902,-645478.67966738,0.00016,2]
[418963896,1774672243916,-228972.668437,0.00016,2]
[418963897,1774672243928,-499.40535172,0.00016,2]
[418963898,1774672243939,-1086.8797393,0.00016,2]
[418963899,1774672243958,-146519.02977612,0.00016,2]
[418963900,1774672243969,-4144.1699421,0.00016,2]
[418963901,1774672244039,-968.22944091,0.00016,2]
[418963902,1774672244051,-952295.33677175,0.00016,2]
[418963903,1774672244062,-1013783.53945803,0.00016,2]
[418963905,1774672245696,-11603.533306,0.00016,2]
[418963906,1774672245755,-7350.20269681,0.00016,2]
[418963916,1774673021175,168.0,6.575e-05,2]
[418963917,1774673021385,156.0,6.575e-05,2]
[418963918,1774673021606,156.0,6.575e-05,2]
[418963919,1774673022197,156.0,6.575e-05,2]
[418963920,1774673022416,156.0,6.575e-05,2]
[418963921,1774673022637,156.0,6.575e-05,2]
[418963922,1774673022852,156.0,6.575e-05,2]
[418963923,1774673023069,156.0,6.575e-05,2]
[418963924,1774673023283,156.0,6.575e-05,2]
[418963925,1774673023495,156.0,6.575e-05,2]
[418963926,1774673023704,156.0,6.575e-05,2]
[418963927,1774673023916,156.0,6.575e-05,2]
[418963928,1774673024160,156.0,6.575e-05,2]
[418963929,1774673024198,-517.97,0.00012719,2]
[418963930,1774673024227,-554.0,0.00013111,2]
[418963931,1774673024258,-151.0,0.00013526,2]
[418963932,1774673024290,-166.66,0.00013544,2]
[418963933,1774673024322,-163.77,0.00013548,2]
[418963934,1774673024353,-150.0,0.00013699,2]
[418963935,1774673024383,-166.66,0.00013829,2]
[418963936,1774673024414,-500.0,0.00013972,2]
[418963937,1774673024443,-250.0,0.00013991,2]
[418963938,1774673024472,-206.59928072,0.00014113,2]
[418963939,1774673024502,-166.66,0.00014115,2]
[418963940,1774673024532,-150.0,0.00014213,2]
[418963941,1774673024562,-150.0,0.00014213,2]
[418963942,1774673024593,-150.0,0.00014213,2]
[418963943,1774673024623,-600.0,0.00014356,2]
[418963944,1774673024652,-500.0,0.00014356,2]
[418963945,1774673024827,-1042.0,0.00014384,2]
[418963946,1774673024858,-3240.0,0.00014385,2]
[418963947,1774673024894,-166.66,0.000144,2]
[418963948,1774673024931,156.0,6.575e-05,2]
[418963949,1774673025040,-2807.0,0.000144,2]
[418963950,1774673025069,-1397.09,0.00014482,2]
[418963951,1774673025098,-150.0,0.00014487,2]
[418963952,1774673025127,-150.0,0.00014487,2]
[418963953,1774673025157,-150.0,0.00014487,2]
[418963954,1774673025188,-327.09,0.00014574,2]
[418963955,1774673025335,156.0,6.575e-05,2]
[418963956,1774673025529,156.0,6.575e-05,2]
[418963957,1774673025630,-166.66,0.00014685,2]
[418963958,1774673025659,-161.0,0.0001472,2]
[418963959,1774673025852,-150.0,0.00014761,2]
[418963960,1774673025881,-150.0,0.00014761,2]
[418963961,1774673025913,-150.0,0.00014761,2]
[418963962,1774673026041,-788.66201015,0.00014791,2]
[418963963,1774673026203,156.0,6.575e-05,2]
[418963964,1774673026333,156.0,6.575e-05,2]
[418963965,1774673026388,156.0,6.575e-05,2]
[418963966,1774673026491,156.0,6.575e-05,2]
[418963967,1774673026672,-1528.35798985,0.00014791,2]
[418963968,1774673026701,156.0,6.575e-05,2]
[418963969,1774673026718,-6894.32798985,0.00014791,2]
[418963970,1774673026727,-312.0,0.000148,2]
[418963971,1774673026737,-2005.02,0.00014846,2]
[418963972,1774673026773,156.0,6.575e-05,2]
[418963973,1774673026807,156.0,6.575e-05,2]
[418963974,1774673026989,-1770.05222135,0.00014846,2]
[418963975,1774673027018,-166.66,0.0001497,2]
[418963976,1774673027046,-3054.4825573,0.00015011,2]
[418963977,1774673027100,-17.6204427,0.00015011,2]
[418963978,1774673027464,-224.758,0.00015011,2]
[418963979,1774673027499,-1351.449,0.00015012,2]
[418963980,1774673027533,-1051.035,0.00015012,2]
[418963981,1774673027566,-1262.0,0.00015012,2]
[418963982,1774673027600,-150.0,0.00015012,2]
[418963983,1774673027643,154.0,6.741e-05,2]
[418963984,1774673027690,-3988.01,0.00015012,2]
[418963985,1774673027729,-2023.99,0.00015012,2]
[418963986,1774673027766,-587.37,0.00015012,2]
[418963987,1774673027799,-415.0,0.00015012,2]
[418963988,1774673027834,-182.29,0.00015012,2]
[418963989,1774673027998,153.0,6.741e-05,2]
[418963990,1774673028073,-736.866,0.00015012,2]
[418963991,1774673028095,-2023.99,0.00015012,2]
[418963992,1774673028113,-587.37,0.00015012,2]
[418963993,1774673028131,-234.484,0.00015012,2]
[418963994,1774673028143,-180.516,0.00015012,2]
[418963995,1774673028161,-659.182,0.00015012,2]
[418963996,1774673028172,-2000.0,0.00015027,2]
[418963997,1774673028185,-151.0,0.00015091,2]
[418963998,1774673028197,-150.0,0.000151,2]
[418963999,1774673028208,-580.62781183,0.000151,2]
[418964000,1774673028220,-154.46961228,0.00015146,2]
[418964001,1774673028232,-69.72057589,0.000152,2]
[418964002,1774673028278,153.0,6.741e-05,2]
[418964003,1774673030063,-881.27942411,0.000152,2]
[418964004,1774673030096,-1000.0,0.000152,2]
[418964005,1774673030126,-500.0,0.00015452,2]
[418964006,1774673030156,-500.0,0.00015452,2]
[418964007,1774673030186,-500.0,0.00015452,2]
[418964008,1774673030216,-500.0,0.00015452,2]
[418964009,1774673030245,-500.0,0.00015452,2]
[418964010,1774673030273,-500.0,0.00015452,2]
[418964011,1774673030410,-237.45115178,0.00015452,2]
[418964012,1774673033080,-262.54884822,0.00015452,2]
[418964013,1774673033110,-500.0,0.00015452,2]
[418964014,1774673033140,-500.0,0.00015452,2]
[418964015,1774673033169,-637.65229483,0.00015452,2]
[418964016,1774673033200,-2799.87,0.0001549,2]
[418964017,1774673033233,-249.9577139,0.00015726,2]
[418964018,1774673033335,-99.9522861,0.00015726,2]
[418964019,1774673033364,-600.0,0.00015726,2]
[418964020,1774673033394,-500.0,0.00015726,2]
[418964021,1774673033423,-3212.6710278,0.000158,2]
[418964022,1774673033502,-1174.7633722,0.000158,2]
[418964023,1774673033530,-249.55296252,0.000158,2]
[418964024,1774673033558,-2500.0,0.000158,2]
[418964025,1774673033717,-1274.7156583,0.000158,2]
[418964026,1774673033735,-2151.37733056,0.000158,2]
[418964027,1774673033771,-792.74815508,0.000158,2]
[418964028,1774673036345,312.0,0.000152,2]
[418964029,1774673036747,4218.84114393,0.00015811,2]
[418964033,1774673364584,155.0,0.000161,120]
[418964034,1774673431828,-465.8,0.00011921,2]
[418964035,1774673431838,-291.0,0.00011921,2]
[418964036,1774673431849,-2100.0,0.00012235,2]
[418964037,1774673431858,-1200.0,0.00013372,2]
[418964038,1774673431867,-500.0,0.00014356,2]
[418964039,1774673431877,-600.0,0.00014356,2]
[418964040,1774673431888,-1080.0,0.0001474,2]
[418964041,1774673431898,-1200.0,0.00014808,2]
[418964042,1774673431908,-1462.92,0.00014809,2]
[418964043,1774673431917,-200.0,0.00014845,2]
[418964044,1774673431926,-338.99,0.00014877,2]
[418964045,1774673431935,-171.9822536,0.00014913,2]
[418964046,1774673431944,-162.47,0.00014914,2]
[418964047,1774673431954,-300.0,0.00014988,2]
[418964048,1774673431963,-300.0,0.00014988,2]
[418964049,1774673431973,-154.46961229,0.00014989,2]
[418964050,1774673431983,-290.0,0.0001501,2]
[418964051,1774673431993,-300.0,0.00015011,2]
[418964052,1774673432004,-623.354,0.00015012,2]
[418964053,1774673432015,-1046.477,0.00015012,2]
[418964054,1774673432026,-1345.0,0.00015012,2]
[418964055,1774673432036,-216.81,0.000152,2]
[418964056,1774673432046,-300.0,0.000152,5]
[418964057,1774673432057,-268.0,0.000152,2]
[418964058,1774673432066,-600.0,0.000153,5]
[418964059,1774673432087,-350.0,0.00015337,2]
[418964060,1774673432098,-900.0,0.000154,5]
[418964061,1774673432108,-152.0,0.00015436,3]
[418964062,1774673432120,-1200.0,0.000155,5]
[418964063,1774673432129,-1500.0,0.000156,5]
[418964064,1774673432139,-300.0,0.000157,5]
[418964065,1774673432149,-500.0,0.00015726,2]
[418964066,1774673432159,-600.0,0.00015726,2]
[418964067,1774673432169,-300.0,0.00015766,2]
[418964068,1774673432178,-31804.72793411,0.00015767,2]
[418964072,1774673432438,-315.31506907,0.00015767,2]
[418964073,1774673432451,-4437.99994,0.00015767,2]
[418964074,1774673432464,-474.41347366,0.00015767,2]
[418964075,1774673432476,-901.90965522,0.00015767,2]
[418964076,1774673432487,-1305.38,0.00015767,2]
[418964077,1774673432499,-1042.34847306,0.00015767,2]
[418964078,1774673432517,-1848.88423792,0.00015767,2]
[418964079,1774673432528,-1089.60038685,0.00015767,2]
[418964080,1774673437875,-603.22941727,0.00015767,2]
[418964081,1774673437931,-10686.04783945,0.00015767,2]
[418964082,1774673437943,-1816.35777339,0.00015767,2]
[418964083,1774673437954,-150.0,0.000158,2]
[418964084,1774673437964,-1048.64231661,0.000158,2]
[418964085,1774673437975,-367.0,0.000158,2]
[418964086,1774673438045,-1084.35768339,0.000158,2]
[418964087,1774673438054,-5000.0,0.000158,2]
[418964088,1774673438064,-300.0,0.000158,5]
[418964089,1774673438073,-217.92790441,0.000158,2]
[418964090,1774673438082,-160.0,0.00015811,3]
[418964091,1774673438091,-160.0,0.00015811,3]
[418964092,1774673438101,-500.0,0.00015872,2]
[418964093,1774673438110,-500.0,0.00015873,2]
[418964094,1774673438120,-177.67846555,0.0001589,2]